fUST/lending_fUST_20250331
["ID","MTS","AMOUNT","RATE_DAILY","PERIOD"]
[356873989,1743351001760,150.15,0.0002,120]
[356874028,1743351032481,-300.0,0.00011799,2]
[356874029,1743351032491,-211.76557701,0.000118,2]
[356874030,1743351032501,-5000.0,0.000118,2]
[356874031,1743351032511,-3271.334423,0.000119,2]
[356874046,1743351032668,-3046.97443287,0.000119,2]
[356874048,1743351032678,-500.0,0.000119,2]
[356874050,1743351032687,-158.3102661,0.0001204,2]
[356874052,1743351032696,-214.269017,0.0001214,2]
[356874054,1743351032706,-4756.64627941,0.00012426,2]
[356874056,1743351032718,-5243.35372059,0.00012426,2]
[356874059,1743351032729,-500.0,0.00012618,2]
[356874061,1743351032740,-458.64750515,0.00012618,2]
[356874063,1743351032749,-40677.84382618,0.00012619,2]
[356874078,1743351032888,-1058.7216521,0.00012619,2]
[356874234,1743351034390,271.4053848,0.00011306,2]
[356874633,1743351043515,-2095.4311279,0.00011306,2]
[356874639,1743351046852,-1584.4489502,0.00011306,2]
[356874831,1743351381169,220.918539,0.00010699,2]
[356874832,1743351653212,10000.0,0.00010696,2]
[356874894,1743352167140,-300.0,0.00011305,2]
[356874895,1743352167162,-38.8919626,0.00011306,2]
[356874908,1743352233011,-300.0,0.00011305,2]
[356874909,1743352233021,-20909.8225745,0.00011306,2]
[356874910,1743352233031,-185.23646786,0.00011592,2]
[356874911,1743352233041,-500.0,0.0001169,2]
[356874912,1743352233052,-171.05325361,0.0001169,2]
[356874913,1743352233061,-15163.59504024,0.00011691,2]
[356874914,1743352233076,-1851.93518204,0.00011691,2]
[356874953,1743352243716,-500.0,0.0001169,2]
[356874954,1743352243726,-500.0,0.0001169,2]
[356874955,1743352243736,-500.0,0.0001169,2]
[356874956,1743352243745,-500.0,0.0001169,2]
[356874957,1743352243755,-500.0,0.0001169,2]
[356874958,1743352243765,-374.24170619,0.0001169,2]
[356874975,1743352345409,333.46,0.00010959,2]
[356875082,1743353437797,-214.269017,0.00011171,2]
[356875083,1743353437807,-2777.56663015,0.00011766,2]
[356875106,1743353440276,-1923.54088155,0.00011766,2]
[356875108,1743353440287,-300.0,0.00012019,2]
[356875110,1743353440299,-500.0,0.0001202,2]
[356875112,1743353440311,-500.0,0.0001202,2]
[356875115,1743353440321,-500.0,0.0001202,2]
[356875117,1743353440330,-500.0,0.0001202,2]
[356875118,1743353440340,-500.0,0.0001202,2]
[356875120,1743353440351,-229.43039233,0.0001202,2]
[356875121,1743353440360,-500.0,0.0001202,2]
[356875122,1743353440370,-2890.21729941,0.00012021,2]
[356875123,1743353440384,-12395.84650029,0.00012021,2]
[356875150,1743353443511,-23.22375121,0.00012021,2]
[356875231,1743353445861,-3406.57924926,0.00012021,2]
[356876462,1743353468677,195.18,0.00010959,2]
[356876463,1743354490105,-358.82559915,0.00012052,2]
[356876503,1743354632095,-1090.38154952,0.00012052,2]
[356876505,1743354632106,-300.0,0.00012052,2]
[356876508,1743354632115,-24900.0,0.00012053,2]
[356876510,1743354632125,-301.0416927,0.00012106,2]
[356876512,1743354632134,-291.17246291,0.0001219,2]
[356876514,1743354632151,-48.15087609,0.0001219,2]
[356876516,1743354632161,-356.0,0.00012286,2]
[356876518,1743354632170,-318.9510498,0.00012286,2]
[356876520,1743354632180,-356.0,0.00012286,2]
[356876521,1743354632189,-356.0,0.00012286,2]
[356876522,1743354632198,-356.0,0.00012286,2]
[356876523,1743354632208,-356.0,0.00012286,2]
[356876524,1743354632217,-356.0,0.00012286,2]
[356876525,1743354632226,-356.0,0.00012286,2]
[356876526,1743354632235,-356.0,0.00012286,2]
[356876527,1743354632246,-356.0,0.00012286,2]
[356876528,1743354632256,-356.0,0.00012286,2]
[356876529,1743354632266,-356.0,0.00012286,2]
[356876530,1743354632276,-356.0,0.00012286,2]
[356876531,1743354632286,-151.0,0.00012618,2]
[356876532,1743354632295,-1293.41284815,0.00012999,2]
[356876533,1743354632305,-159.3697634,0.00013,2]
[356876534,1743354632314,-420.0,0.00013229,2]
[356876535,1743354632324,-168.3838509,0.00013262,2]
[356876536,1743354632334,-469.73727752,0.00013263,2]
[356876537,1743354632343,-356.0,0.00013264,2]
[356876538,1743354632352,-318.0,0.00013264,2]
[356876539,1743354632362,-356.0,0.00013264,2]
[356876540,1743354632371,-356.0,0.00013264,2]
[356876541,1743354632381,-318.0,0.00013264,2]
[356876542,1743354632391,-318.0,0.00013264,2]
[356876543,1743354632400,-318.0,0.00013264,2]
[356876544,1743354632410,-318.0,0.00013264,2]
[356876545,1743354632420,-252.24200161,0.00013292,2]
[356876546,1743354632429,-2636.5,0.00013292,2]
[356876547,1743354632439,-152.0,0.00013353,2]
[356876548,1743354632448,-152.62776324,0.00013354,2]
[356876549,1743354632458,-3633.42456929,0.00013362,2]
[356876599,1743354638136,-356.0,0.00012286,2]
[356876602,1743354638145,-356.0,0.00012286,2]
[356876604,1743354638155,-356.0,0.00012286,2]
[356876606,1743354638164,-356.0,0.00012286,2]
[356876608,1743354638173,-356.0,0.00012286,2]
[356876609,1743354638183,-160.4489502,0.00012286,2]
[356876612,1743354638192,-1369.63060252,0.00013362,2]
[356877044,1743354643364,-3582.10000037,0.00013362,2]
[356877266,1743354646066,-615.5,0.00013362,2]
[356877289,1743354654969,585.55,0.00010959,2]
[356877306,1743355728839,206.92311257,0.0002,120]
[356877333,1743355832583,-300.0,0.00012373,2]
[356877334,1743355832594,-500.0,0.00012373,2]
[356877335,1743355832604,-24900.0,0.00012374,2]
[356877336,1743355832613,-168.3838509,0.00012961,2]
[356877337,1743355832623,-1099.9325731,0.00013162,2]
[356877338,1743355832632,-1042.91377601,0.00013237,2]
[356877373,1743355840992,175.21,0.00010959,2]
[356877397,1743355843268,-57.01879705,0.00013237,2]
[356877398,1743355843278,-544.66605932,0.00013261,2]
[356877399,1743355843288,-8721.85875595,0.00013262,2]
[356877406,1743355844253,-164303.73346737,0.00013262,2]
[356877415,1743355846259,-1237.43049552,0.00013262,2]
[356877416,1743355846314,-3234.98145832,0.00013262,2]
[356877426,1743355851560,876.06,0.00010959,2]
[356877462,1743356784700,451.31568143,0.0002,120]
[356877498,1743357032527,-500.0,0.00011957,2]
[356877499,1743357032537,-500.0,0.00011957,2]
[356877500,1743357032547,-300.0,0.00011957,2]
[356877501,1743357032556,-7031.5224247,0.00011958,2]
[356877502,1743357032568,-17868.4775753,0.00011958,2]
[356877503,1743357032577,-295.25780128,0.00012149,2]
[356877504,1743357032586,-500.0,0.00012249,2]
[356877505,1743357032595,-5000.0,0.00012249,2]
[356877506,1743357032604,-1952.97765913,0.000129,2]
[356877507,1743357032614,-420.0,0.00013127,2]
[356877508,1743357032623,-635.92270267,0.00013161,2]
[356877509,1743357032632,-183.321,0.00013161,2]
[356877524,1743357032813,-4241.59584269,0.00013162,2]
[356877544,1743357038303,-16044.35269422,0.00013162,2]
[356877546,1743357038357,-1971.63882417,0.00013162,2]
[356877547,1743357038368,-1078.09412299,0.00013162,2]
[356877548,1743357038411,-569.30980071,0.00013162,2]
[356877549,1743357038432,-2724.46620968,0.00013162,2]
[356877557,1743357043559,-1358.98999995,0.00013162,2]
[356877558,1743357043571,-468.942,0.00013162,2]
[356877559,1743357043583,-528.79095152,0.00013162,2]
[356877565,1743357046373,-370.4729357,0.00013062,2]
[356877566,1743357046383,-4794.15408513,0.00013162,2]
[356877567,1743357046485,-346.68203741,0.00013162,2]
[356877592,1743357229909,399.0406188,0.00013061,3]
[356877641,1743358238601,-402.85170234,0.00011758,2]
[356877642,1743358238611,-5000.0,0.00011858,2]
[356877643,1743358238622,-300.0,0.00012049,2]
[356877644,1743358238631,-2688.34829766,0.0001205,2]
[356877704,1743358241096,-22211.65170234,0.0001205,2]
[356877705,1743358241117,-2564.40794087,0.00012961,2]
[356877706,1743358241126,-510.23746497,0.00013061,2]
[356877707,1743358241136,-17452.12169836,0.00013062,2]
[356877708,1743358241151,-1041.44652036,0.00013062,2]
[356877709,1743358241163,-3910.92031945,0.00013062,2]
[356877725,1743358243751,-30769.4297269,0.00013062,2]
[356877726,1743358243765,-499.9967325,0.00013062,2]
[356877727,1743358243778,-16439.1501964,0.00013062,2]
[356877728,1743358243791,-2302.97642376,0.00013062,2]
[356877729,1743358243807,-4625.0000005,0.00013062,2]
[356877730,1743358243820,-1022.12636978,0.00013062,2]
[356877731,1743358243831,-1000.0,0.00013062,2]
[356877732,1743358243859,-568.97965861,0.00013062,2]
[356877832,1743358246691,-5104.55944332,0.00013062,2]
[356877833,1743358246746,-9998.6908919,0.00013062,2]
[356877834,1743358246758,-300.0,0.00013062,2]
[356877835,1743358246770,-271.2209191,0.00013062,2]
[356877836,1743358246802,-880.55619306,0.00013062,2]
[356877837,1743358246814,-797.37923331,0.00013062,2]
[356877867,1743359431982,-5000.0,0.00011758,2]
[356877868,1743359431992,-300.0,0.00012005,2]
[356877869,1743359432001,-24900.0,0.00012006,2]
[356877870,1743359432013,-2243.85694827,0.000129,2]
[356877871,1743359432022,-151.0,0.00012954,2]
[356877872,1743359432032,-151.0,0.00012954,2]
[356877873,1743359432043,-151.0,0.00012954,2]
[356877874,1743359432052,-483.68610439,0.00012961,2]
[356877875,1743359432061,-20570.95860759,0.00012962,2]
[356877876,1743359432076,-272143.86647014,0.00012962,2]
[356877899,1743359437751,-151.0,0.00012954,2]
[356877900,1743359437761,-151.0,0.00012954,2]
[356877901,1743359437771,-8003.13069582,0.00012962,2]
[356877902,1743359437806,-7203.77707781,0.00012962,2]
[356877903,1743359437818,-6373.58,0.00012962,2]
[356877904,1743359437830,-1438.5777231,0.00012962,2]
[356877905,1743359437862,-22151.70937003,0.00012962,2]
[356877906,1743359437874,-1000.0,0.00012962,2]
[356877920,1743359440135,-324.97025148,0.00012962,2]
[356877921,1743359440147,-2416.58911568,0.00012962,2]
[356877922,1743359440159,-28372.84068835,0.00012962,2]
[356877923,1743359440170,-843.0,0.000131,2]
[356877924,1743359440179,-420.0,0.00013178,2]
[356877925,1743359440190,-857.80316496,0.0001325,2]
[356877926,1743359440201,-151.0,0.00013261,2]
[356877927,1743359440215,-152.0,0.00013318,2]
[356877928,1743359440224,-692.6356736,0.00013375,2]
[356877929,1743359440236,-165.16749136,0.00013375,2]
[356877930,1743359440247,-685.24275989,0.00013375,2]
[356877931,1743359440330,-49314.75724011,0.00013375,2]
[356877932,1743359440340,-857.80316496,0.000135,2]
[356877933,1743359440350,-41784.30603041,0.00013562,2]
[356877953,1743359445874,-1350.29409001,0.00013562,2]
[356877955,1743359446037,-4091.30233536,0.00013562,2]
[356878786,1743360632163,-300.0,0.00012532,2]
[356878787,1743360632173,-24900.0,0.00012533,2]
[356878788,1743360632183,-1805.3165755,0.00012546,2]
[356878789,1743360632192,-5000.0,0.00013462,2]
[356878790,1743360632201,-2075.5567113,0.00013467,2]
[356878791,1743360632211,-381.2445902,0.00013473,2]
[356878792,1743360632220,-381.2445902,0.0001348,2]
[356878793,1743360632230,-381.2445902,0.00013487,2]
[356878794,1743360632239,-381.2445902,0.00013493,2]
[356878795,1743360632249,-381.2445902,0.000135,2]
[356878796,1743360632258,-190.91974284,0.00013561,2]
[356878797,1743360632267,-5371.83490738,0.00013561,2]
[356878801,1743360637997,-427.1441883,0.0001356,2]
[356878802,1743360638006,-3427.95433273,0.00013561,2]
[356878803,1743360638018,-4381.15560315,0.00013561,2]
[356878804,1743360638051,-36819.05515674,0.00013561,2]
[356878805,1743360638060,-1065.07312907,0.00013562,2]
[356878806,1743360638071,-913.68013903,0.00013562,2]
[356878807,1743360638108,-591.2867132,0.00013562,2]
[356878895,1743360640293,-52596.77471679,0.00013562,2]
[356878897,1743360640302,-32182.35972117,0.00013573,2]
[356878908,1743360640352,-29828.06060542,0.00013573,2]
[356879409,1743360643332,-507.28312449,0.00013573,2]
[356879411,1743360643344,-304.33010524,0.00013573,2]
[356879413,1743360643355,-539.43999999,0.00013573,2]
[356879695,1743360646162,-1051.37158526,0.00013573,2]
[356879713,1743360646325,-39166.52953459,0.00013573,2]
[356880158,1743361832562,-784.0168224,0.00012049,2]
[356880159,1743361832572,-1553.73896799,0.00012433,2]
[356880160,1743361832584,-543.8641223,0.00012433,2]
[356880161,1743361832596,-2902.39690971,0.00012433,2]
[356880162,1743361832605,-300.0,0.00012478,2]
[356880163,1743361832615,-739.60630369,0.00012479,2]
[356880164,1743361832668,-3356.92,0.00012479,2]
[356880451,1743361840660,-665.81705216,0.00012479,2]
[356880537,1743361843394,-8542.9473541,0.00012479,2]
[356880574,1743361846398,-7841.12572696,0.00012479,2]
[356880581,1743361846452,-3753.58356309,0.00012479,2]
[356880583,1743361846462,-3063.74643691,0.00012598,2]
[356880639,1743362132412,790.0,0.00014,7]
[356880665,1743363032807,-810.21005594,0.00012333,2]
[356880685,1743363038543,-3647.58803284,0.00012333,2]
[356880686,1743363038557,-542.20191122,0.00012333,2]
[356880687,1743363038567,-300.0,0.00012395,2]
[356880688,1743363038577,-500.0,0.00012396,2]
[356880689,1743363038589,-500.0,0.00012396,2]
[356880690,1743363038598,-500.0,0.00012396,2]
[356880691,1743363038608,-500.0,0.00012396,2]
[356880692,1743363038618,-500.0,0.00012396,2]
[356880693,1743363038628,-24900.0,0.00012397,2]
[356880694,1743363038639,-426.52953039,0.00012598,2]
[356880695,1743363038649,-2036.64348006,0.000129,2]
[356880696,1743363038660,-176.53903026,0.00013273,2]
[356880697,1743363038669,-360.99567248,0.00013371,2]
[356880698,1743363038679,-50000.0,0.00013372,2]
[356880699,1743363038689,-249077.09014657,0.00013373,2]
[356880700,1743363038701,-9547.63942139,0.00013373,2]
[356880734,1743363046677,-58399.04594919,0.00013373,2]
[356880735,1743363046689,-1437.0,0.00013373,2]
[356880739,1743363122078,643.06,0.00010959,2]
[356880839,1743364231973,-1015.5752592,0.00012296,2]
[356880841,1743364231985,-84.4247408,0.00012367,2]
[356880874,1743364237743,-215.5752592,0.00012367,2]
[356880875,1743364237754,-500.0,0.00012368,2]
[356880876,1743364237766,-500.0,0.00012368,2]
[356880877,1743364237776,-500.0,0.00012368,2]
[356880878,1743364237787,-500.0,0.00012368,2]
[356880879,1743364237797,-500.0,0.00012368,2]
[356880880,1743364237808,-650.0,0.00012368,2]
[356880881,1743364237818,-500.0,0.00012368,2]
[356880883,1743364237828,-500.0,0.00012368,2]
[356880885,1743364237839,-500.0,0.00012368,2]
[356880887,1743364237849,-184.61479903,0.00012368,2]
[356880889,1743364237860,-15269.03872211,0.00012369,2]
[356880890,1743364237870,-252.69697073,0.0001237,2]
[356880891,1743364237880,-24900.0,0.00012371,2]
[356880892,1743364237890,-1875.59308514,0.000129,2]
[356880893,1743364237901,-542.0,0.00012962,2]
[356880894,1743364237911,-2270.0,0.00012962,2]
[356880895,1743364237922,-1915.0,0.00012962,2]
[356880896,1743364237932,-401.0,0.00012962,2]
[356880897,1743364237943,-170280.75882562,0.00013371,2]
[356880903,1743364239949,-691.52116,0.00013371,2]
[356880914,1743364242949,-2000.0,0.00013371,2]
[356880925,1743364245798,-3000.0,0.00013371,2]
[356880926,1743364245906,-20343.29272391,0.00013371,2]
[356880935,1743365073430,9647.68431857,0.00015,120]
[356880989,1743365432069,-1181.7223759,0.00012112,2]
[356880990,1743365432081,-500.0,0.00012112,2]
[356880991,1743365432090,-500.0,0.00012112,2]
[356880992,1743365432100,-203.70107194,0.00012112,2]
[356880993,1743365432110,-300.0,0.00012393,2]
[356880994,1743365432119,-500.0,0.00012394,2]
[356880995,1743365432129,-500.0,0.00012394,2]
[356880996,1743365432139,-350.0,0.00012394,2]
[356880997,1743365432149,-500.0,0.00012394,2]
[356880998,1743365432158,-416.64596795,0.00012394,2]
[356880999,1743365432168,-10087.46095527,0.00012395,2]
[356881010,1743365437901,-9370.23596311,0.00012395,2]
[356881057,1743365443055,-5442.30308162,0.00012395,2]
[356881058,1743365443066,-594.2996036,0.00012395,2]
[356881321,1743365709683,-172.63844085,0.00012295,2]
[356881322,1743365718925,-152.27921964,0.00012295,2]
[356881323,1743365726366,-168.19779738,0.00012295,2]
[356881325,1743365758418,-180.192473,0.00012244,2]
[356881326,1743365764355,-159.247357,0.00012243,2]
[356881327,1743365796371,-234.0697124,0.00011994,2]
[356881328,1743365823246,-152.86131706,0.00011994,2]
[356881329,1743365839706,1000.0,0.00014,10]
[356881330,1743365847533,1000.0,0.00014,10]
[356881331,1743365853663,1000.0,0.00014,10]
[356881332,1743365861359,1000.0,0.00014,10]
[356881333,1743365867772,1000.0,0.00014,10]
[356881334,1743365875492,1000.0,0.00014,10]
[356881335,1743365881617,1000.0,0.00014,10]
[356881336,1743365883747,-300.0,0.00011994,2]
[356881337,1743365888108,1000.0,0.00014,10]
[356881338,1743365893810,1000.0,0.00014,10]
[356881339,1743365907626,730.42,0.00014,10]
[356881340,1743365911592,-164.97350521,0.00011994,2]
[356881341,1743365943062,-153.92089248,0.00011994,2]
[356881342,1743366014557,-148.98838815,0.00011994,2]
[356881343,1743366014580,-274.59725771,0.00012144,2]
[356881344,1743366021546,-180.40614429,0.00012144,2]
[356881346,1743366063635,-21.61010704,0.00012144,2]
[356881347,1743366063659,-278.38989296,0.00012243,2]
[356881351,1743366125270,-200.0,0.00012243,2]
[356881352,1743366135332,-500.0,0.00012243,2]
[356881372,1743366153446,-232.46233118,0.00012243,2]
[356881375,1743366171824,-180.192473,0.00012243,2]
[356881377,1743366179904,-180.192473,0.00012121,2]
[356881378,1743366183678,-87.34519582,0.00012243,2]
[356881379,1743366183706,-131.15256461,0.00012243,2]
[356881380,1743366187507,-172.87853869,0.00012121,2]
[356881382,1743366245080,-176.92108597,0.00012121,2]
[356881384,1743366303870,-48.89060877,0.00012121,2]
[356881385,1743366303896,-101.30976657,0.00012243,2]
[356881386,1743366303921,-149.79962466,0.00012243,2]
[356881389,1743366308857,-211.24657045,0.00012,2]
[356881485,1743366604910,200.0,0.00014,3]
[356881486,1743366605577,200.0,0.00014,3]
[356881487,1743366606194,200.0,0.00014,3]
[356881488,1743366606840,200.0,0.00014,3]
[356881489,1743366607467,200.0,0.00014,3]
[356881490,1743366608127,200.0,0.00014,3]
[356881491,1743366608775,200.0,0.00014,3]
[356881492,1743366609381,200.0,0.00014,3]
[356881493,1743366610014,261.25639985,0.00014,3]
[356881519,1743366632262,-349.79962466,0.00012121,2]
[356881520,1743366632272,-300.0,0.00012243,2]
[356881521,1743366632282,-300.0,0.00012243,2]
[356881522,1743366632291,-879.54405018,0.00012244,2]
[356881523,1743366632303,-272.07162368,0.00012244,2]
[356881524,1743366632317,-6382.29965611,0.00012244,2]
[356881525,1743366632375,-17185.89219703,0.00012244,2]
[356881527,1743366632385,-6.88454213,0.00012295,2]
[356881530,1743366632395,-542.0,0.00012835,2]
[356881533,1743366632404,-401.0,0.00012835,2]
[356881537,1743366632415,-789.27194631,0.00012978,2]
[356881540,1743366632424,-1829.1715759,0.00013065,2]
[356881543,1743366632433,-194.72938397,0.00013071,2]
[356881546,1743366632443,-4959.454251,0.00013165,2]
[356881574,1743366638012,-3305.95430145,0.00013165,2]
[356881575,1743366638022,-196.4322414,0.00013165,2]
[356881576,1743366638031,-348.75649449,0.0001317,2]
[356881577,1743366638069,-111.59975364,0.0001317,2]
[356881578,1743366638078,-6585.30040605,0.00013171,2]
[356881579,1743366638090,-739.30559893,0.00013171,2]
[356881580,1743366638127,-177832.12014467,0.00013171,2]
[356881590,1743366640452,-1211.49676063,0.00013171,2]
[356881591,1743366640741,-796.76260512,0.00013171,2]
[356881676,1743366643711,-1469.34453355,0.00013171,2]
[356881679,1743366643723,-695.0686426,0.00013171,2]
[356881761,1743366665559,555.69,0.00010959,2]
[356881791,1743367318009,-592.0614,0.00012442,2]
[356881795,1743367347666,-216.9001104,0.00012194,2]
[356881796,1743367383307,-300.0,0.00012193,2]
[356881797,1743367445508,-200.0,0.00012193,2]
[356881799,1743367455227,-100.0,0.00012193,2]
[356881800,1743367455251,-400.0,0.00012193,2]
[356881801,1743367473202,-100.0,0.00012193,2]
[356881802,1743367473227,-400.0,0.00012193,2]
[356881803,1743367483753,-100.0,0.00012193,2]
[356881804,1743367483777,-400.0,0.00012193,2]
[356881806,1743367492281,-100.0,0.00012193,2]
[356881807,1743367492535,-400.0,0.00012193,2]
[356881809,1743367509360,-332.31469702,0.00012071,2]
[356881810,1743367519535,-83.96055772,0.00012071,2]
[356881811,1743367519560,-215.0,0.00012193,2]
[356881812,1743367519585,-33.3541393,0.00012193,2]
[356881813,1743367585796,-167.68530298,0.00012039,2]
[356881814,1743367599925,-49.21480742,0.00012039,2]
[356881815,1743367599954,-66.6458607,0.00012193,2]
[356881816,1743367599982,-384.13933188,0.00012193,2]
[356881817,1743367617932,-115.86066812,0.00012193,2]
[356881818,1743367617955,-332.31469702,0.00012193,2]
[356881819,1743367617981,-51.82463486,0.00012193,2]
[356881820,1743367628051,-448.17536514,0.00012193,2]
[356881821,1743367628075,-51.82463486,0.00012193,2]
[356881822,1743367638042,-418.72816033,0.00012193,2]
[356881853,1743367838521,-29.44720481,0.00012193,2]
[356881854,1743367838530,-500.0,0.00012193,2]
[356881855,1743367838539,-500.0,0.00012193,2]
[356881856,1743367838548,-418.72816033,0.00012193,2]
[356881857,1743367838558,-24683.0998896,0.00012194,2]
[356881858,1743367838567,-1017.7558173,0.00012442,2]
[356881859,1743367838576,-118.47608747,0.00012944,2]
[356881860,1743367838587,-420.12491253,0.00012944,2]
[356881861,1743367838597,-401.0,0.00012944,2]
[356881862,1743367838606,-193.08988141,0.00013065,2]
[356881863,1743367838615,-1692.95771609,0.00013065,2]
[356881864,1743367838624,-232.86442144,0.0001307,2]
[356881865,1743367838636,-2010.12071604,0.0001307,2]
[356881866,1743367838645,-90.62264808,0.0001307,2]
[356881881,1743367840678,-359.7699821,0.0001307,2]
[356881882,1743367840688,-28557.21072577,0.00013071,2]
[356881883,1743367840700,-2808.88207405,0.00013071,2]
[356881884,1743367840712,-1867.854828,0.00013071,2]
[356881885,1743367840956,-197.77747102,0.00013071,2]
[356881895,1743367843628,-12907.36412238,0.00013071,2]
[356881896,1743367843658,-431.24277293,0.00013071,2]
[356881922,1743368352271,-500.0,0.00012422,2]
[356882185,1743369038508,-1602.4446254,0.00012422,2]
[356882186,1743369038518,-256.3555329,0.00012468,2]
[356882187,1743369038528,-1552.10670111,0.000129,2]
[356882188,1743369038538,-401.0,0.00012944,2]
[356882189,1743369038547,-500.0,0.0001297,2]
[356882190,1743369038556,-721.01489085,0.00012971,2]
[356882191,1743369038568,-6619.28680766,0.00012971,2]
[356882215,1743369046564,-441.8099972,0.00012971,2]
[356882228,1743369069533,202.82,0.00010959,2]
[356882357,1743370231864,-300.0,0.00012778,2]
[356882358,1743370231875,-519.31373106,0.00012779,2]
[356882359,1743370231885,-4804.99169889,0.00012779,2]
[356882360,1743370231895,-262.1777189,0.00012779,2]
[356882361,1743370231907,-151.0,0.00012863,2]
[356882362,1743370231917,-151.0,0.00012863,2]
[356882363,1743370231927,-151.0,0.00012863,2]
[356882364,1743370231937,-151.0,0.00012863,2]
[356882365,1743370231948,-151.0,0.00012863,2]
[356882366,1743370231959,-151.0,0.00012863,2]
[356882367,1743370231970,-151.0,0.00012863,2]
[356882368,1743370231980,-151.0,0.00012863,2]
[356882369,1743370231991,-500.0,0.0001287,2]
[356882370,1743370232001,-287.9814692,0.0001287,2]
[356882371,1743370232011,-500.0,0.0001287,2]
[356882372,1743370232022,-421.14849759,0.0001287,2]
[356882373,1743370232032,-51751.31566934,0.00012871,2]
[356882374,1743370232045,-230693.86481204,0.00012871,2]
[356882388,1743370237716,-946.37722602,0.00012871,2]
[356882389,1743370237775,-19704.75851471,0.00012871,2]
[356882397,1743370240009,-41032.52171151,0.00012871,2]
[356882398,1743370240023,-290.77627598,0.00012871,2]
[356882399,1743370240067,-25580.3857904,0.00012871,2]
[356882400,1743370240079,-187.381291,0.00012879,2]
[356882401,1743370240092,-1832.84,0.0001297,2]
[356882403,1743370240103,-1832.84,0.0001297,2]
[356882404,1743370240114,-1832.84,0.0001297,2]
[356882405,1743370240125,-1832.84,0.0001297,2]
[356882406,1743370240137,-1832.84,0.0001297,2]
[356882407,1743370240147,-1832.84,0.0001297,2]
[356882408,1743370240157,-1832.84,0.0001297,2]
[356882409,1743370240170,-1832.84,0.0001297,2]
[356882410,1743370240181,-1832.84,0.0001297,2]
[356882411,1743370240192,-1832.84,0.0001297,2]
[356882412,1743370240203,-1832.84,0.0001297,2]
[356882413,1743370240213,-1832.84,0.0001297,2]
[356882414,1743370240223,-1832.84,0.0001297,2]
[356882415,1743370240232,-1832.84,0.0001297,2]
[356882416,1743370240241,-1832.84,0.0001297,2]
[356882417,1743370240251,-1832.84,0.0001297,2]
[356882418,1743370240260,-1832.84,0.0001297,2]
[356882419,1743370240269,-1832.84,0.0001297,2]
[356882420,1743370240521,-47813.2880981,0.0001297,2]
[356882423,1743370242842,-1483.22075354,0.0001297,2]
[356882424,1743370242956,-357.64678432,0.0001297,2]
[356882439,1743370245986,-345.84436404,0.0001297,2]
[356882440,1743370245995,-307.10563606,0.00012979,2]
[356882544,1743370774066,-300.0,0.0001186,2]
[356882547,1743370804950,-172.63844085,0.00011859,2]
[356882577,1743370855066,-172.63844085,0.0001176,2]
[356882578,1743370855092,-127.36155915,0.00011859,2]
[356882579,1743370855116,-1577.849,0.0001186,2]
[356882580,1743370871905,-180.81848361,0.00011742,2]
[356882627,1743371223213,-300.0,0.0001186,2]
[356882628,1743371224341,-292.0614,0.0001186,2]
[356882630,1743371290804,-152.27921964,0.00011821,2]
[356882639,1743371344030,-152.27921964,0.0001176,2]
[356882640,1743371344055,-15.91857774,0.00011821,2]
[356882641,1743371403016,-180.192473,0.00011821,2]
[356882655,1743371432123,-1011.96871522,0.00011821,2]
[356882656,1743371432133,-300.0,0.00011859,2]
[356882657,1743371432142,-9029.2314964,0.0001186,2]
[356882658,1743371432151,-353.1616663,0.0001277,2]
[356882659,1743371432160,-1000.0,0.0001277,2]
[356882660,1743371432169,-1000.0,0.0001277,2]
[356882661,1743371432179,-1000.0,0.0001277,2]
[356882662,1743371432188,-1000.0,0.0001277,2]
[356882663,1743371432197,-1000.0,0.0001277,2]
[356882664,1743371432206,-1000.0,0.0001277,2]